[Event "*** Titled Tuesday Blitz"]
[Site "Chess.com"]
[Date "2021.02.02"]
[Round "7"]
[White "Ziyamammadov"]
[Black "MariaFominykh"]
[Result "0-1"]
[WhiteElo "1750"]
[BlackElo "2261"]
[TimeControl "180+1"]
[EndTime "11:19:45 PST"]
[Termination "MariaFominykh won by resignation"]

1. e4 {[%clk 0:03:00.4]} 1... d6 {[%clk 0:02:58.5]} 2. d4 {[%clk 0:02:59.5]}
2... Nf6 {[%clk 0:02:58.8]} 3. Nc3 {[%clk 0:02:59.3]} 3... Nbd7 {[%clk
0:02:58.5]} 4. f3 {[%clk 0:02:56.7]} 4... e5 {[%clk 0:02:57.9]} 5. dxe5 {[%clk
0:02:55.8]} 5... dxe5 {[%clk 0:02:57.4]} 6. Bc4 {[%clk 0:02:53.7]} 6... c6
{[%clk 0:02:48.9]} 7. Be3 {[%clk 0:02:51.8]} 7... b5 {[%clk 0:02:38.9]} 8. Bb3
{[%clk 0:02:47.9]} 8... Be7 {[%clk 0:02:18.3]} 9. Nge2 {[%clk 0:02:46.7]} 9...
O-O {[%clk 0:02:16.2]} 10. Qd2 {[%clk 0:02:44.6]} 10... Nc5 {[%clk 0:02:07.6]}
11. Qxd8 {[%clk 0:02:42.8]} 11... Rxd8 {[%clk 0:02:08.5]} 12. Bxc5 {[%clk
0:02:28.4]} 12... Bxc5 {[%clk 0:02:07.1]} 13. Rd1 {[%clk 0:02:16.6]} 13... Bb7
{[%clk 0:01:57.7]} 14. Rxd8+ {[%clk 0:02:14.3]} 14... Rxd8 {[%clk 0:01:58.6]}
15. Ng3 {[%clk 0:02:11.8]} 15... a5 {[%clk 0:01:54.2]} 16. a3 {[%clk 0:02:11.5]}
16... b4 {[%clk 0:01:34.4]} 17. axb4 {[%clk 0:02:09.7]} 17... Bxb4 {[%clk
0:01:25.9]} 18. O-O {[%clk 0:02:06]} 18... Rd2 {[%clk 0:01:17.5]} 19. Nf5 {[%clk
0:01:56.4]} 19... Kf8 {[%clk 0:01:09.9]} 20. Kh1 {[%clk 0:01:49.3]} 20... Ba6
{[%clk 0:00:57.3]} 21. Re1 {[%clk 0:01:42.5]} 21... Nd7 {[%clk 0:00:46.6]} 22.
Ba4 {[%clk 0:01:23.5]} 22... Nc5 {[%clk 0:00:27.5]} 23. Bxc6 {[%clk 0:01:18.5]}
23... Rxc2 {[%clk 0:00:19.8]} 24. Rd1 {[%clk 0:01:06.2]} 24... Nd3 {[%clk
0:00:16.8]} 25. Kg1 {[%clk 0:00:34.6]} 25... Bc5+ {[%clk 0:00:15.9]} 26. Kf1
{[%clk 0:00:20.5]} 26... Nxb2+ {[%clk 0:00:13.9]} 27. Bb5 {[%clk 0:00:15.8]}
27... Bxb5+ {[%clk 0:00:13.3]} 28. Nxb5 {[%clk 0:00:16.7]} 28... Nxd1 {[%clk
0:00:13.6]} 29. Ke1 {[%clk 0:00:16.7]} 29... Nc3 {[%clk 0:00:12.4]} 30. Nxc3
{[%clk 0:00:16.2]} 30... Rxc3 {[%clk 0:00:13.3]} 31. Kd2 {[%clk 0:00:16.5]}
31... Rb3 {[%clk 0:00:12.6]} 32. Kc2 {[%clk 0:00:16.5]} 32... a4 {[%clk
0:00:12.8]} 33. Ng3 {[%clk 0:00:14.6]} 33... g6 {[%clk 0:00:12.7]} 34. Ne2
{[%clk 0:00:13.9]} 34... Re3 {[%clk 0:00:12.7]} 35. Nc3 {[%clk 0:00:13.6]} 35...
Rxc3+ {[%clk 0:00:12.6]} 36. Kxc3 {[%clk 0:00:13.6]} 36... a3 {[%clk 0:00:13.5]}
37. Kb3 {[%clk 0:00:13.8]} 37... Ke7 {[%clk 0:00:13.1]} 38. g3 {[%clk
0:00:13.1]} 38... Kd6 {[%clk 0:00:13.5]} 39. f4 {[%clk 0:00:12.5]} 39... f5
{[%clk 0:00:13.5]} 40. h4 {[%clk 0:00:10.6]} 40... fxe4 {[%clk 0:00:13.2]} 41.
h5 {[%clk 0:00:04.4]} 41... exf4 {[%clk 0:00:12.6]} 42. gxf4 {[%clk 0:00:04.4]}
42... e3 {[%clk 0:00:12]} 43. f5 {[%clk 0:00:05.3]} 43... gxf5 {[%clk
0:00:11.5]} 44. h6 {[%clk 0:00:05.5]} 44... e2 {[%clk 0:00:11.4]} 45. Kc4 {[%clk
0:00:05.1]} 45... e1=Q {[%clk 0:00:11.9]} 46. Kb5 {[%clk 0:00:05.2]} 46... Qe4
{[%clk 0:00:12.4]} 47. Ka6 {[%clk 0:00:04.3]} 0-1

[Event "*** Titled Tuesday Blitz"]
[Site "Chess.com"]
[Date "2021.02.02"]
[Round "7"]
[White "kuban1991"]
[Black "Spalir"]
[Result "0-1"]
[WhiteElo "2817"]
[BlackElo "2658"]
[TimeControl "180+1"]
[EndTime "11:19:46 PST"]
[Termination "Spalir won on time"]

1. Nf3 {[%clk 0:03:00.9]} 1... Nf6 {[%clk 0:02:58.7]} 2. g3 {[%clk 0:03:00.9]}
2... g6 {[%clk 0:02:58.4]} 3. Bg2 {[%clk 0:03:01.4]} 3... Bg7 {[%clk 0:02:57.3]}
4. O-O {[%clk 0:03:02.3]} 4... O-O {[%clk 0:02:54.1]} 5. d4 {[%clk 0:03:01.9]}
5... d5 {[%clk 0:02:52.8]} 6. Nbd2 {[%clk 0:03:01.8]} 6... c6 {[%clk 0:02:50.3]}
7. c3 {[%clk 0:03:01.6]} 7... Bf5 {[%clk 0:02:47.4]} 8. Re1 {[%clk 0:03:02.5]}
8... Nbd7 {[%clk 0:02:44.7]} 9. Nh4 {[%clk 0:03:02.3]} 9... Bg4 {[%clk
0:02:40.9]} 10. h3 {[%clk 0:03:02.3]} 10... Be6 {[%clk 0:02:41.3]} 11. e4 {[%clk
0:02:58.9]} 11... Nxe4 {[%clk 0:02:38.8]} 12. Nxe4 {[%clk 0:02:59.8]} 12... dxe4
{[%clk 0:02:39.3]} 13. Rxe4 {[%clk 0:03:00.7]} 13... Bd5 {[%clk 0:02:35.6]} 14.
Re1 {[%clk 0:03:01.1]} 14... Bxg2 {[%clk 0:02:31.7]} 15. Kxg2 {[%clk 0:03:00.3]}
15... e5 {[%clk 0:02:32.6]} 16. d5 {[%clk 0:02:59.2]} 16... cxd5 {[%clk
0:02:21.1]} 17. Qxd5 {[%clk 0:03:00.1]} 17... Qc7 {[%clk 0:02:19.7]} 18. Be3
{[%clk 0:02:48.9]} 18... Nb6 {[%clk 0:02:19.8]} 19. Bxb6 {[%clk 0:02:31.5]}
19... Qxb6 {[%clk 0:02:20.7]} 20. Qb3 {[%clk 0:02:28.4]} 20... Qc6+ {[%clk
0:02:18]} 21. Kg1 {[%clk 0:02:28.2]} 21... Rad8 {[%clk 0:02:16]} 22. Rad1 {[%clk
0:02:26.9]} 22... Rfe8 {[%clk 0:02:15.2]} 23. Ng2 {[%clk 0:02:26.4]} 23... Bf8
{[%clk 0:02:10]} 24. a4 {[%clk 0:02:18.9]} 24... Bc5 {[%clk 0:02:04.5]} 25. Qb5
{[%clk 0:02:15.2]} 25... Qc7 {[%clk 0:01:50.9]} 26. Kf1 {[%clk 0:01:46.8]} 26...
a6 {[%clk 0:01:45.6]} 27. Qc4 {[%clk 0:01:44.4]} 27... Qe7 {[%clk 0:01:42.7]}
28. Rd5 {[%clk 0:01:36.3]} 28... Rxd5 {[%clk 0:01:37.6]} 29. Qxd5 {[%clk
0:01:37.2]} 29... Kg7 {[%clk 0:01:24.4]} 30. Nf4 {[%clk 0:01:22.5]} 30... f6
{[%clk 0:01:18.4]} 31. Nd3 {[%clk 0:01:09.2]} 31... Bb6 {[%clk 0:01:10.9]} 32.
Qe4 {[%clk 0:01:01.8]} 32... Qd7 {[%clk 0:01:07.8]} 33. Kg2 {[%clk 0:00:56.5]}
33... Rd8 {[%clk 0:01:05.1]} 34. Nb4 {[%clk 0:00:37.6]} 34... a5 {[%clk
0:01:02.6]} 35. Nc2 {[%clk 0:00:37.1]} 35... Bc5 {[%clk 0:00:56]} 36. Ne3 {[%clk
0:00:32.9]} 36... Bxe3 {[%clk 0:00:53.1]} 37. Rxe3 {[%clk 0:00:33.8]} 37... Qd5
{[%clk 0:00:50.8]} 38. Qxd5 {[%clk 0:00:27.1]} 38... Rxd5 {[%clk 0:00:51.7]} 39.
Kf3 {[%clk 0:00:15.5]} 39... f5 {[%clk 0:00:46.3]} 40. Ke2 {[%clk 0:00:14.1]}
40... Kf6 {[%clk 0:00:34.8]} 41. Rd3 {[%clk 0:00:11.9]} 41... Ke6 {[%clk
0:00:34.3]} 42. Rxd5 {[%clk 0:00:05.5]} 42... Kxd5 {[%clk 0:00:35.2]} 43. Kd3
{[%clk 0:00:06.4]} 43... e4+ {[%clk 0:00:32.5]} 44. Kc2 {[%clk 0:00:06.5]} 44...
Kc4 {[%clk 0:00:32.1]} 45. b3+ {[%clk 0:00:06.5]} 45... Kd5 {[%clk 0:00:29.3]}
46. Kd2 {[%clk 0:00:06.7]} 46... g5 {[%clk 0:00:25.9]} 47. Ke3 {[%clk
0:00:04.5]} 47... Ke5 {[%clk 0:00:25.2]} 0-1

[Event "*** Titled Tuesday Blitz"]
[Site "Chess.com"]
[Date "2021.02.02"]
[Round "7"]
[White "Leo_C"]
[Black "kamilianin235"]
[Result "1-0"]
[WhiteElo "2395"]
[BlackElo "2223"]
[TimeControl "180+1"]
[EndTime "11:19:46 PST"]
[Termination "Leo_C won on time"]

1. d4 {[%clk 0:03:00.9]} 1... d5 {[%clk 0:02:51.3]} 2. c4 {[%clk 0:03:00.5]}
2... dxc4 {[%clk 0:02:47.6]} 3. e4 {[%clk 0:03:00.2]} 3... c5 {[%clk 0:02:45.7]}
4. d5 {[%clk 0:02:57.8]} 4... e6 {[%clk 0:02:44.4]} 5. Bxc4 {[%clk 0:02:56.5]}
5... Nf6 {[%clk 0:02:37.1]} 6. Nc3 {[%clk 0:02:54.9]} 6... exd5 {[%clk 0:02:35]}
7. exd5 {[%clk 0:02:54.6]} 7... a6 {[%clk 0:02:28.4]} 8. a4 {[%clk 0:02:52.9]}
8... Bd6 {[%clk 0:02:28.1]} 9. Nf3 {[%clk 0:02:51.9]} 9... O-O {[%clk
0:02:26.2]} 10. O-O {[%clk 0:02:52.1]} 10... Bg4 {[%clk 0:02:25]} 11. h3 {[%clk
0:02:51.2]} 11... Bh5 {[%clk 0:02:23.6]} 12. Re1 {[%clk 0:02:43.7]} 12... Nbd7
{[%clk 0:02:22.3]} 13. a5 {[%clk 0:02:35.6]} 13... Qc7 {[%clk 0:02:15.3]} 14.
Be2 {[%clk 0:02:29.1]} 14... Rfe8 {[%clk 0:02:07.5]} 15. Ra4 {[%clk 0:02:18.5]}
15... Re7 {[%clk 0:01:50.8]} 16. Be3 {[%clk 0:02:01.4]} 16... Rae8 {[%clk
0:01:47.7]} 17. Nd2 {[%clk 0:01:50.7]} 17... Bxe2 {[%clk 0:01:42.9]} 18. Rxe2
{[%clk 0:01:50.3]} 18... Ne5 {[%clk 0:01:35]} 19. Qb3 {[%clk 0:01:30]} 19... Rc8
{[%clk 0:01:18]} 20. Nc4 {[%clk 0:01:23.3]} 20... Nxc4 {[%clk 0:01:15.6]} 21.
Qxc4 {[%clk 0:01:22.5]} 21... Nd7 {[%clk 0:01:05.5]} 22. Qh4 {[%clk 0:01:13.8]}
22... Ne5 {[%clk 0:00:59]} 23. Rd2 {[%clk 0:01:03.8]} 23... Rce8 {[%clk
0:00:52.5]} 24. Qh5 {[%clk 0:00:46.3]} 24... c4 {[%clk 0:00:42.6]} 25. Ne4
{[%clk 0:00:44.5]} 25... Rc8 {[%clk 0:00:19.9]} 26. Bb6 {[%clk 0:00:39.4]} 26...
Qd7 {[%clk 0:00:18.2]} 27. Nxd6 {[%clk 0:00:36.3]} 27... Qxd6 {[%clk 0:00:16.9]}
28. Qd1 {[%clk 0:00:31.6]} 28... Nd3 {[%clk 0:00:14.4]} 29. Re2 {[%clk
0:00:15.7]} 29... Rxe2 {[%clk 0:00:11.1]} 30. Qxe2 {[%clk 0:00:15.6]} 30... Qxd5
{[%clk 0:00:08.9]} 31. Ra1 {[%clk 0:00:13.7]} 31... Qd7 {[%clk 0:00:07]} 32. Be3
{[%clk 0:00:11]} 32... Re8 {[%clk 0:00:06.3]} 33. Qf3 {[%clk 0:00:10.6]} 33...
Qc6 {[%clk 0:00:03.3]} 34. Qg3 {[%clk 0:00:07.8]} 34... g6 {[%clk 0:00:01.4]}
35. Bd4 {[%clk 0:00:07.2]} 35... Rd8 {[%clk 0:00:01.5]} 36. Bc3 {[%clk
0:00:07.2]} 36... Qe6 {[%clk 0:00:01.8]} 37. Rd1 {[%clk 0:00:06.3]} 37... Re8
{[%clk 0:00:02]} 38. b3 {[%clk 0:00:05.3]} 38... Qe2 {[%clk 0:00:01.9]} 39. Rf1
{[%clk 0:00:05.1]} 39... cxb3 {[%clk 0:00:01.8]} 40. Bd4 {[%clk 0:00:03.9]}
40... b2 {[%clk 0:00:01.9]} 41. Qg5 {[%clk 0:00:01.8]} 41... Qc2 {[%clk
0:00:01.8]} 42. Qf5 {[%clk 0:00:01.9]} 1-0

[Event "*** Titled Tuesday Blitz"]
[Site "Chess.com"]
[Date "2021.02.02"]
[Round "7"]
[White "AniJak"]
[Black "SharapovEvgeny"]
[Result "1/2-1/2"]
[WhiteElo "2288"]
[BlackElo "2454"]
[TimeControl "180+1"]
[EndTime "11:19:47 PST"]
[Termination "Game drawn by repetition"]

1. e4 {[%clk 0:03:00.9]} 1... c5 {[%clk 0:02:58.7]} 2. Nf3 {[%clk 0:02:59.7]}
2... d6 {[%clk 0:02:58.5]} 3. Bb5+ {[%clk 0:02:59.3]} 3... Nd7 {[%clk 0:02:57]}
4. O-O {[%clk 0:02:58.6]} 4... Nf6 {[%clk 0:02:56.1]} 5. Re1 {[%clk 0:02:58.3]}
5... e5 {[%clk 0:02:55.7]} 6. c3 {[%clk 0:02:58.1]} 6... Be7 {[%clk 0:02:55.4]}
7. d4 {[%clk 0:02:57.9]} 7... Qc7 {[%clk 0:02:55.1]} 8. Bg5 {[%clk 0:02:55.2]}
8... O-O {[%clk 0:02:51.4]} 9. Nbd2 {[%clk 0:02:54.5]} 9... a6 {[%clk
0:02:50.5]} 10. Bxd7 {[%clk 0:02:48.3]} 10... Bxd7 {[%clk 0:02:48.4]} 11. dxe5
{[%clk 0:02:42.9]} 11... dxe5 {[%clk 0:02:48]} 12. Nc4 {[%clk 0:02:42.9]} 12...
Bc6 {[%clk 0:02:36.3]} 13. Nfxe5 {[%clk 0:02:26.3]} 13... Rad8 {[%clk
0:02:21.6]} 14. Qc1 {[%clk 0:01:46.1]} 14... Be8 {[%clk 0:02:10.7]} 15. Nf3
{[%clk 0:01:40.2]} 15... b5 {[%clk 0:02:08.7]} 16. Bxf6 {[%clk 0:01:36.1]} 16...
Bxf6 {[%clk 0:02:06.9]} 17. Ne3 {[%clk 0:01:36.6]} 17... Bc6 {[%clk 0:02:03.7]}
18. Qc2 {[%clk 0:01:18.8]} 18... Rfe8 {[%clk 0:02:02.8]} 19. Nf5 {[%clk
0:01:19.3]} 19... Qb7 {[%clk 0:01:57.1]} 20. Ng3 {[%clk 0:01:19]} 20... b4
{[%clk 0:01:48.6]} 21. cxb4 {[%clk 0:01:13]} 21... cxb4 {[%clk 0:01:48]} 22.
Rac1 {[%clk 0:01:11.1]} 22... Rc8 {[%clk 0:01:45]} 23. Qb1 {[%clk 0:00:51.8]}
23... g6 {[%clk 0:01:29.2]} 24. h3 {[%clk 0:00:44.2]} 24... Bg7 {[%clk 0:01:26]}
25. Rcd1 {[%clk 0:00:39.4]} 25... Rc7 {[%clk 0:01:24.5]} 26. Nd4 {[%clk
0:00:38.1]} 26... Be5 {[%clk 0:01:14]} 27. Nxc6 {[%clk 0:00:35.9]} 27... Rxc6
{[%clk 0:01:09.7]} 28. Nf1 {[%clk 0:00:34.3]} 28... Rce6 {[%clk 0:01:07.5]} 29.
Ne3 {[%clk 0:00:34]} 29... Bg7 {[%clk 0:00:54.9]} 30. Nd5 {[%clk 0:00:33.7]}
30... f5 {[%clk 0:00:49.8]} 31. Qc2 {[%clk 0:00:19.4]} 31... fxe4 {[%clk
0:00:44.7]} 32. Ne3 {[%clk 0:00:17]} 32... Kh8 {[%clk 0:00:40.9]} 33. Qb3 {[%clk
0:00:16.9]} 33... a5 {[%clk 0:00:37]} 34. Rd5 {[%clk 0:00:16.4]} 34... Re5
{[%clk 0:00:32.5]} 35. Red1 {[%clk 0:00:16.4]} 35... Rxd5 {[%clk 0:00:32.2]} 36.
Rxd5 {[%clk 0:00:16.4]} 36... Qc7 {[%clk 0:00:28.3]} 37. Qa4 {[%clk 0:00:14.6]}
37... Rd8 {[%clk 0:00:22.3]} 38. Rxd8+ {[%clk 0:00:14.1]} 38... Qxd8 {[%clk
0:00:22.3]} 39. b3 {[%clk 0:00:14.2]} 39... h5 {[%clk 0:00:19.7]} 40. Qb5 {[%clk
0:00:14.2]} 40... Qd2 {[%clk 0:00:16.2]} 41. Qe8+ {[%clk 0:00:11]} 41... Kh7
{[%clk 0:00:15.4]} 42. Qxe4 {[%clk 0:00:11.1]} 42... Qxa2 {[%clk 0:00:14.5]} 43.
Nd5 {[%clk 0:00:11]} 43... Qxb3 {[%clk 0:00:10.9]} 44. Nf4 {[%clk 0:00:11.3]}
44... Qf7 {[%clk 0:00:08.9]} 45. Nxh5 {[%clk 0:00:11.5]} 45... b3 {[%clk
0:00:07.3]} 46. Nxg7 {[%clk 0:00:11.4]} 46... Qxg7 {[%clk 0:00:07.3]} 47. Qh4+
{[%clk 0:00:11.7]} 47... Qh6 {[%clk 0:00:07.1]} 48. Qe7+ {[%clk 0:00:12]} 48...
Qg7 {[%clk 0:00:07.2]} 49. Qh4+ {[%clk 0:00:12.2]} 49... Qh6 {[%clk 0:00:07.2]}
50. Qe7+ {[%clk 0:00:12.5]} 50... Qg7 {[%clk 0:00:07.3]} 51. Qh4+ {[%clk
0:00:12.5]} 1/2-1/2

[Event "*** Titled Tuesday Blitz"]
[Site "Chess.com"]
[Date "2021.02.02"]
[Round "7"]
[White "andriipalchuk"]
[Black "utsavp"]
[Result "1-0"]
[WhiteElo "2583"]
[BlackElo "2295"]
[TimeControl "180+1"]
[EndTime "11:19:51 PST"]
[Termination "andriipalchuk won by resignation"]

1. e4 {[%clk 0:03:00.9]} 1... c5 {[%clk 0:02:59.2]} 2. Nf3 {[%clk 0:02:57.1]}
2... a6 {[%clk 0:02:59.6]} 3. c3 {[%clk 0:02:56.9]} 3... Nf6 {[%clk 0:02:56.5]}
4. e5 {[%clk 0:02:57.2]} 4... Nd5 {[%clk 0:02:56.3]} 5. d4 {[%clk 0:02:58.1]}
5... cxd4 {[%clk 0:02:54.8]} 6. cxd4 {[%clk 0:02:59]} 6... e6 {[%clk 0:02:54.7]}
7. Nc3 {[%clk 0:02:59.3]} 7... Nxc3 {[%clk 0:02:54.9]} 8. bxc3 {[%clk
0:03:00.2]} 8... d6 {[%clk 0:02:54.7]} 9. Bd3 {[%clk 0:03:00.4]} 9... Nc6 {[%clk
0:02:54.9]} 10. exd6 {[%clk 0:03:00.4]} 10... Bxd6 {[%clk 0:02:54.1]} 11. O-O
{[%clk 0:03:01.1]} 11... O-O {[%clk 0:02:52.8]} 12. h4 {[%clk 0:02:51.4]} 12...
h6 {[%clk 0:02:48.3]} 13. Be3 {[%clk 0:02:37.6]} 13... Ne7 {[%clk 0:02:42.8]}
14. Qd2 {[%clk 0:02:17.9]} 14... Nf5 {[%clk 0:02:15.5]} 15. Bxf5 {[%clk
0:02:12.1]} 15... exf5 {[%clk 0:02:16.4]} 16. Rfe1 {[%clk 0:02:12.4]} 16... Be6
{[%clk 0:02:09.2]} 17. Bxh6 {[%clk 0:01:58.7]} 17... Bd5 {[%clk 0:01:56.8]} 18.
Bg5 {[%clk 0:01:22.5]} 18... f6 {[%clk 0:01:52.8]} 19. Bf4 {[%clk 0:01:21.5]}
19... Bxf3 {[%clk 0:01:50.2]} 20. gxf3 {[%clk 0:01:20.5]} 20... Rc8 {[%clk
0:01:49.8]} 21. Rac1 {[%clk 0:01:12.5]} 21... Ba3 {[%clk 0:01:31.5]} 22. Rb1
{[%clk 0:00:59.2]} 22... Qd5 {[%clk 0:01:30.5]} 23. Qd3 {[%clk 0:00:47.7]} 23...
b5 {[%clk 0:01:26.6]} 24. c4 {[%clk 0:00:45.6]} 24... Rxc4 {[%clk 0:01:12.7]}
25. Qxa3 {[%clk 0:00:44.3]} 25... Rxd4 {[%clk 0:01:12.4]} 26. Be3 {[%clk
0:00:37.9]} 26... Rxh4 {[%clk 0:01:09.3]} 27. Qb3 {[%clk 0:00:38]} 27... Rc4
{[%clk 0:01:03.9]} 28. Kh2 {[%clk 0:00:22.1]} 28... Qxf3 {[%clk 0:00:57.1]} 29.
Rbc1 {[%clk 0:00:21.7]} 29... Rc8 {[%clk 0:00:44.9]} 30. Rxc4 {[%clk 0:00:21.3]}
30... bxc4 {[%clk 0:00:35.4]} 31. Qd1 {[%clk 0:00:21.2]} 31... Qe4 {[%clk
0:00:20.4]} 32. f3 {[%clk 0:00:20.7]} 32... Qh4+ {[%clk 0:00:19.4]} 33. Kg2
{[%clk 0:00:21.3]} 33... c3 {[%clk 0:00:18.3]} 34. Rh1 {[%clk 0:00:21.7]} 34...
Qc4 {[%clk 0:00:16.3]} 35. Qb3 {[%clk 0:00:20.9]} 35... c2 {[%clk 0:00:14]} 36.
Qxc4+ {[%clk 0:00:20.5]} 36... Rxc4 {[%clk 0:00:14.6]} 37. Rc1 {[%clk
0:00:21.1]} 37... f4 {[%clk 0:00:15]} 38. Bd2 {[%clk 0:00:20.8]} 38... Kf7
{[%clk 0:00:14.3]} 39. Kf2 {[%clk 0:00:21.5]} 39... Ke6 {[%clk 0:00:15]} 40. Ke2
{[%clk 0:00:22.2]} 40... Kd5 {[%clk 0:00:15.1]} 41. Kd3 {[%clk 0:00:22.9]} 41...
Rd4+ {[%clk 0:00:14]} 42. Kxc2 {[%clk 0:00:22.2]} 42... Ra4 {[%clk 0:00:14.7]}
43. Kb3 {[%clk 0:00:21.6]} 43... g5 {[%clk 0:00:15.5]} 44. Kxa4 {[%clk
0:00:21.5]} 44... Kd4 {[%clk 0:00:15.1]} 45. Bc3+ {[%clk 0:00:21.1]} 45... Kd3
{[%clk 0:00:15.9]} 46. Bxf6 {[%clk 0:00:21.5]} 46... Ke2 {[%clk 0:00:16.5]} 47.
Bxg5 {[%clk 0:00:21.5]} 47... Kxf3 {[%clk 0:00:17.4]} 48. Bxf4 {[%clk
0:00:22.1]} 48... Kg4 {[%clk 0:00:17.6]} 49. Ka5 {[%clk 0:00:23]} 49... Kf5
{[%clk 0:00:17.8]} 50. Kxa6 {[%clk 0:00:23.9]} 50... Ke4 {[%clk 0:00:17.7]} 51.
Rc8 {[%clk 0:00:24.8]} 51... Kxf4 {[%clk 0:00:17.9]} 52. a4 {[%clk 0:00:25.7]}
52... Ke5 {[%clk 0:00:17.9]} 53. a5 {[%clk 0:00:26.6]} 53... Kd6 {[%clk
0:00:16.7]} 54. Kb7 {[%clk 0:00:27.5]} 54... Kd7 {[%clk 0:00:16.7]} 55. a6
{[%clk 0:00:28.4]} 55... Kd6 {[%clk 0:00:16.8]} 56. a7 {[%clk 0:00:29.3]} 56...
Kd5 {[%clk 0:00:16.7]} 1-0

[Event "*** Titled Tuesday Blitz"]
[Site "Chess.com"]
[Date "2021.02.02"]
[Round "7"]
[White "SaraciNderim"]
[Black "kikydu96"]
[Result "1-0"]
[WhiteElo "2825"]
[BlackElo "2581"]
[TimeControl "180+1"]
[EndTime "11:19:52 PST"]
[Termination "SaraciNderim won on time"]

1. d4 {[%clk 0:02:59]} 1... d5 {[%clk 0:02:59.8]} 2. Nf3 {[%clk 0:02:58.8]} 2...
Nf6 {[%clk 0:02:59.8]} 3. Bf4 {[%clk 0:02:58.9]} 3... c5 {[%clk 0:02:59]} 4. e3
{[%clk 0:02:58.9]} 4... Nc6 {[%clk 0:02:59.3]} 5. Nbd2 {[%clk 0:02:58.8]} 5...
Bf5 {[%clk 0:02:59.1]} 6. dxc5 {[%clk 0:02:58]} 6... Qa5 {[%clk 0:02:46.6]} 7.
Nd4 {[%clk 0:02:56.2]} 7... Bd7 {[%clk 0:02:39.9]} 8. Nb3 {[%clk 0:02:53.2]}
8... Qa4 {[%clk 0:02:34.9]} 9. Be2 {[%clk 0:02:52.1]} 9... e5 {[%clk 0:02:33.4]}
10. Bg3 {[%clk 0:02:51.8]} 10... h5 {[%clk 0:02:29.2]} 11. h3 {[%clk 0:02:48]}
11... h4 {[%clk 0:02:27.9]} 12. Bh2 {[%clk 0:02:46.8]} 12... O-O-O {[%clk
0:02:22.5]} 13. c4 {[%clk 0:02:25.7]} 13... Be6 {[%clk 0:02:02.1]} 14. cxd5
{[%clk 0:02:19.2]} 14... Bxd5 {[%clk 0:02:01.4]} 15. O-O {[%clk 0:02:18.9]}
15... g5 {[%clk 0:01:43.4]} 16. Qc2 {[%clk 0:02:16.2]} 16... Be6 {[%clk
0:01:31.1]} 17. Bc4 {[%clk 0:02:14]} 17... Bxc4 {[%clk 0:00:37.6]} 18. Qxc4
{[%clk 0:02:04.3]} 18... Qxc4 {[%clk 0:00:35.5]} 19. Nxc4 {[%clk 0:02:05.2]}
19... Nd7 {[%clk 0:00:30.4]} 20. Rfd1 {[%clk 0:02:02]} 20... f6 {[%clk
0:00:30.4]} 21. Nd6+ {[%clk 0:01:58.2]} 21... Bxd6 {[%clk 0:00:29.3]} 22. Rxd6
{[%clk 0:01:57.2]} 22... Kc7 {[%clk 0:00:26.5]} 23. Rad1 {[%clk 0:01:53.4]}
23... Rhf8 {[%clk 0:00:24.9]} 24. f4 {[%clk 0:01:52.5]} 24... gxf4 {[%clk
0:00:18.8]} 25. exf4 {[%clk 0:01:52.3]} 25... e4 {[%clk 0:00:19.4]} 26. f5
{[%clk 0:01:51.1]} 26... Nde5 {[%clk 0:00:19.7]} 27. Rxd8 {[%clk 0:01:47.1]}
27... Rxd8 {[%clk 0:00:20.6]} 28. Rxd8 {[%clk 0:01:46.1]} 28... Kxd8 {[%clk
0:00:21.5]} 29. Kf2 {[%clk 0:01:45.7]} 29... Nd3+ {[%clk 0:00:20.3]} 30. Ke3
{[%clk 0:01:45.4]} 30... Nxb2 {[%clk 0:00:19.5]} 31. Kxe4 {[%clk 0:01:45.7]}
31... Nb4 {[%clk 0:00:19.2]} 32. Nc1 {[%clk 0:01:39.6]} 32... Na4 {[%clk
0:00:17.3]} 33. Bg1 {[%clk 0:01:35.5]} 33... Kd7 {[%clk 0:00:16.9]} 34. Bd4
{[%clk 0:01:34.5]} 34... Kc6 {[%clk 0:00:15]} 35. Bxf6 {[%clk 0:01:32.3]} 35...
Nxc5+ {[%clk 0:00:15.4]} 36. Kf3 {[%clk 0:01:29.2]} 36... Ncd3 {[%clk
0:00:12.5]} 37. Nxd3 {[%clk 0:01:27.9]} 37... Nxd3 {[%clk 0:00:13.4]} 38. Bxh4
{[%clk 0:01:28.4]} 38... Nb4 {[%clk 0:00:13.7]} 39. a3 {[%clk 0:01:28.1]} 39...
Nc2 {[%clk 0:00:13.9]} 40. Be7 {[%clk 0:01:27.3]} 40... Kd7 {[%clk 0:00:14.1]}
41. f6 {[%clk 0:01:26.9]} 41... b5 {[%clk 0:00:12]} 42. g4 {[%clk 0:01:26.4]}
42... a5 {[%clk 0:00:12.1]} 43. g5 {[%clk 0:01:26.3]} 43... b4 {[%clk
0:00:11.5]} 44. axb4 {[%clk 0:01:25.9]} 44... axb4 {[%clk 0:00:12.1]} 45. g6
{[%clk 0:01:19.6]} 45... b3 {[%clk 0:00:09.3]} 46. g7 {[%clk 0:01:18.7]} 46...
b2 {[%clk 0:00:07.9]} 47. g8=Q {[%clk 0:01:17.3]} 47... b1=Q {[%clk 0:00:05.3]}
48. Qd5+ {[%clk 0:01:14.3]} 48... Ke8 {[%clk 0:00:04.6]} 49. Qc6+ {[%clk
0:01:10.5]} 49... Kf7 {[%clk 0:00:04.6]} 50. Qc4+ {[%clk 0:01:10.4]} 50... Ke8
{[%clk 0:00:04.9]} 51. Bc5 {[%clk 0:00:59.4]} 51... Qd1+ {[%clk 0:00:04.8]} 52.
Qe2+ {[%clk 0:00:56.5]} 52... Qxe2+ {[%clk 0:00:04.7]} 53. Kxe2 {[%clk
0:00:57.4]} 53... Kf7 {[%clk 0:00:05.5]} 54. Kd2 {[%clk 0:00:46.3]} 54... Na1
{[%clk 0:00:05.6]} 55. Kc3 {[%clk 0:00:42.8]} 55... Kxf6 {[%clk 0:00:05.9]} 56.
Kb2 {[%clk 0:00:39.5]} 56... Kg5 {[%clk 0:00:04.2]} 57. Be7+ {[%clk 0:00:38.4]}
1-0